[Event "Titled Tuesday Blitz May 4 2021"]
[White "Callejas Rojas, Francisco Miguel"]
[Black "Belanoff, Ted"]
[WhiteFideId "32072503"]
[BlackFideId "2070588"]
[WhiteElo "2293"]
[BlackElo "2173"]
[Result "1-0"]
[Round "08"]
[TimeControl "180+1"]
[Date "2021.05.04"]
[WhiteClock "0:00:26"]
[BlackClock "0:01:57"]

1. d4 {[%clk 0:03:00]}  Nf6 {[%clk 0:02:59]} 2. c4 {[%clk 0:03:00]}  g6 {[%clk 0:02:59]} 3. Nc3 {[%clk 0:03:01]}  d5 {[%clk 0:02:59]} 4. cxd5 {[%clk 0:02:48]}  Nxd5 {[%clk 0:02:59]} 5. e4 {[%clk 0:02:49]}  Nxc3 {[%clk 0:02:59]} 6. bxc3 {[%clk 0:02:50]}  Bg7 {[%clk 0:02:59]} 7. Bg5 {[%clk 0:02:51]}  c5 {[%clk 0:03:00]} 8. Rc1 {[%clk 0:02:49]}  cxd4 {[%clk 0:02:58]} 9. cxd4 {[%clk 0:02:50]}  Nc6 {[%clk 0:02:59]} 10. d5 {[%clk 0:02:36]}  Nd4 {[%clk 0:02:56]} 11. Qd2 {[%clk 0:02:15]}  O-O {[%clk 0:02:51]} 12. Ne2 {[%clk 0:02:14]}  Nxe2 {[%clk 0:02:50]} 13. Bxe2 {[%clk 0:02:14]}  Bd7 {[%clk 0:02:40]} 14. O-O {[%clk 0:02:13]}  f6 {[%clk 0:02:36]} 15. Be3 {[%clk 0:02:08]}  b6 {[%clk 0:02:35]} 16. d6 {[%clk 0:01:48]}  exd6 {[%clk 0:02:32]} 17. Qxd6 {[%clk 0:01:49]}  Rc8 {[%clk 0:02:12]} 18. Rfd1 {[%clk 0:01:37]}  Rxc1 {[%clk 0:02:09]} 19. Bxc1 {[%clk 0:01:38]}  Re8 {[%clk 0:02:02]} 20. Bc4+ {[%clk 0:01:18]}  Kh8 {[%clk 0:02:01]} 21. Qxd7 {[%clk 0:01:19]}  Qxd7 {[%clk 0:02:01]} 22. Rxd7 {[%clk 0:01:19]}  Rc8 {[%clk 0:02:01]} 23. Bf1 {[%clk 0:01:05]}  h5 {[%clk 0:01:52]} 24. Be3 {[%clk 0:00:57]}  Ra8 {[%clk 0:01:50]} 25. Ba6 {[%clk 0:00:54]}  g5 {[%clk 0:01:47]} 26. f3 {[%clk 0:00:48]}  h4 {[%clk 0:01:40]} 27. h3 {[%clk 0:00:46]}  Rb8 {[%clk 0:01:38]} 28. Rxa7 {[%clk 0:00:45]}  b5 {[%clk 0:01:38]} 29. Bb7 {[%clk 0:00:22]}  b4 {[%clk 0:01:36]} 30. Ra8 {[%clk 0:00:19]}  Rxa8 {[%clk 0:01:36]} 31. Bxa8 {[%clk 0:00:20]}  Bf8 {[%clk 0:01:34]} 32. Bd5 {[%clk 0:00:17]}  Kg7 {[%clk 0:01:35]} 33. Kf1 {[%clk 0:00:17]}  Kg6 {[%clk 0:01:35]} 34. Ke2 {[%clk 0:00:17]}  f5 {[%clk 0:01:36]} 35. Kd2 {[%clk 0:00:15]}  fxe4 {[%clk 0:01:34]} 36. Bxe4+ {[%clk 0:00:14]}  Kf6 {[%clk 0:01:34]} 37. Bd4+ {[%clk 0:00:15]}  Ke6 {[%clk 0:01:35]} 38. Kc2 {[%clk 0:00:15]}  Bd6 {[%clk 0:01:34]} 39. Kb3 {[%clk 0:00:15]}  Kd7 {[%clk 0:01:33]} 40. Bf6 {[%clk 0:00:14]}  Bf4 {[%clk 0:01:31]} 41. Bg7 {[%clk 0:00:12]}  Ke6 {[%clk 0:01:32]} 42. Kxb4 {[%clk 0:00:12]}  Bd2+ {[%clk 0:01:33]} 43. Kc5 {[%clk 0:00:11]}  Kf7 {[%clk 0:01:34]} 44. Bd4 {[%clk 0:00:10]}  Bc1 {[%clk 0:01:34]} 45. a4 {[%clk 0:00:10]}  Ba3+ {[%clk 0:01:35]} 46. Kb5 {[%clk 0:00:09]}  Ke6 {[%clk 0:01:36]} 47. a5 {[%clk 0:00:10]}  Bd6 {[%clk 0:01:36]} 48. a6 {[%clk 0:00:10]}  Bb8 {[%clk 0:01:37]} 49. Kb6 {[%clk 0:00:10]}  Kd7 {[%clk 0:01:34]} 50. Kb7 {[%clk 0:00:10]}  Be5 {[%clk 0:01:30]} 51. Bxe5 {[%clk 0:00:09]}  Ke6 {[%clk 0:01:31]} 52. Bh2 {[%clk 0:00:08]}  g4 {[%clk 0:01:32]} 53. hxg4 {[%clk 0:00:07]}  Kd7 {[%clk 0:01:31]} 54. g5 {[%clk 0:00:06]}  Ke6 {[%clk 0:01:32]} 55. g6 {[%clk 0:00:06]}  Kf6 {[%clk 0:01:32]} 56. Be5+ {[%clk 0:00:05]}  Ke7 {[%clk 0:01:30]} 57. Bf5 {[%clk 0:00:04]}  h3 {[%clk 0:01:30]} 58. Bxh3 {[%clk 0:00:05]}  Kf8 {[%clk 0:01:30]} 59. Bh2 {[%clk 0:00:06]}  Kg8 {[%clk 0:01:31]} 60. Bg1 {[%clk 0:00:06]}  Kg7 {[%clk 0:01:31]} 61. Bf2 {[%clk 0:00:07]}  Kf6 {[%clk 0:01:32]} 62. Be3 {[%clk 0:00:08]}  Kxg6 {[%clk 0:01:32]} 63. Bd2 {[%clk 0:00:09]}  Kg7 {[%clk 0:01:33]} 64. Bc3+ {[%clk 0:00:10]}  Kg6 {[%clk 0:01:32]} 65. Kb6 {[%clk 0:00:11]}  Kg5 {[%clk 0:01:33]} 66. Kb5 {[%clk 0:00:11]}  Kf4 {[%clk 0:01:34]} 67. Kb4 {[%clk 0:00:12]}  Kg3 {[%clk 0:01:35]} 68. Kb3 {[%clk 0:00:13]}  Kh2 {[%clk 0:01:35]} 69. Kb4 {[%clk 0:00:14]}  Kh1 {[%clk 0:01:36]} 70. Kb5 {[%clk 0:00:15]}  Kh2 {[%clk 0:01:37]} 71. Kc6 {[%clk 0:00:16]}  Kh1 {[%clk 0:01:38]} 72. Kd7 {[%clk 0:00:17]}  Kh2 {[%clk 0:01:39]} 73. Ke6 {[%clk 0:00:17]}  Kh1 {[%clk 0:01:40]} 74. Ke7 {[%clk 0:00:18]}  Kh2 {[%clk 0:01:41]} 75. Kd6 {[%clk 0:00:19]}  Kh1 {[%clk 0:01:42]} 76. Kc7 {[%clk 0:00:20]}  Kh2 {[%clk 0:01:43]} 77. Kd8 {[%clk 0:00:21]}  Kh1 {[%clk 0:01:43]} 78. Ke7 {[%clk 0:00:22]}  Kh2 {[%clk 0:01:44]} 79. Ke8 {[%clk 0:00:23]}  Kh1 {[%clk 0:01:45]} 80. Kf7 {[%clk 0:00:24]}  Kh2 {[%clk 0:01:46]} 81. Kf8 {[%clk 0:00:25]}  Kh1 {[%clk 0:01:47]} 82. Kg7 {[%clk 0:00:26]}  Kh2 {[%clk 0:01:48]} 83. f4 {[%clk 0:00:26]}  Kh1 {[%clk 0:01:49]} 84. f5 {[%clk 0:00:26]}  Kh2 {[%clk 0:01:50]} 85. f6 {[%clk 0:00:27]}  Kh1 {[%clk 0:01:51]} 86. g4 {[%clk 0:00:26]}  Kg1 {[%clk 0:01:52]} 87. g5 {[%clk 0:00:26]}  Kh2 {[%clk 0:01:52]} 88. g6 {[%clk 0:00:27]}  Kg3 {[%clk 0:01:53]} 89. Bc8 {[%clk 0:00:27]}  Kh4 {[%clk 0:01:54]} 90. Bb4 {[%clk 0:00:26]}  Kg5 {[%clk 0:01:55]} 91. Bf8 {[%clk 0:00:25]}  Kh5 {[%clk 0:01:56]} 92. Kf7 {[%clk 0:00:26]}  Kg5 {[%clk 0:01:57]} 93. Bg7 {[%clk 0:00:26]} 1-0


[Site "https://www.chess.com"]

[Event "Titled Tuesday Blitz May 4 2021"]
[White "Carrasco Miranda, Andres"]
[Black "Ismayil, Malak"]
[WhiteFideId "3405990"]
[BlackFideId "13412604"]
[WhiteElo "2177"]
[BlackElo "1879"]
[Result "1-0"]
[Round "08"]
[TimeControl "180+1"]
[Date "2021.05.04"]
[WhiteClock "0:00:10"]
[BlackClock "0:00:03"]

1. d4 {[%clk 0:03:00]}  Nf6 {[%clk 0:02:59]} 2. c4 {[%clk 0:03:00]}  e6 {[%clk 0:02:59]} 3. g3 {[%clk 0:02:47]}  Bb4+ {[%clk 0:02:58]} 4. Nd2 {[%clk 0:02:46]}  O-O {[%clk 0:02:57]} 5. Bg2 {[%clk 0:02:46]}  Nc6 {[%clk 0:02:57]} 6. Nf3 {[%clk 0:02:46]}  Ne4 {[%clk 0:02:55]} 7. O-O {[%clk 0:02:43]}  Bxd2 {[%clk 0:02:53]} 8. Bxd2 {[%clk 0:02:44]}  d6 {[%clk 0:02:48]} 9. d5 {[%clk 0:02:41]}  exd5 {[%clk 0:02:30]} 10. cxd5 {[%clk 0:02:39]}  Ne7 {[%clk 0:02:30]} 11. Nd4 {[%clk 0:02:14]}  Nf6 {[%clk 0:02:23]} 12. Bg5 {[%clk 0:01:37]}  Ng6 {[%clk 0:02:08]} 13. Rc1 {[%clk 0:01:35]}  Bd7 {[%clk 0:01:33]} 14. e4 {[%clk 0:01:18]}  Rc8 {[%clk 0:01:31]} 15. h3 {[%clk 0:01:17]}  h6 {[%clk 0:01:29]} 16. Be3 {[%clk 0:01:16]}  Re8 {[%clk 0:01:14]} 17. Qc2 {[%clk 0:01:12]}  Qe7 {[%clk 0:01:10]} 18. Rfe1 {[%clk 0:00:51]}  c6 {[%clk 0:00:38]} 19. Nf5 {[%clk 0:00:48]}  Bxf5 {[%clk 0:00:22]} 20. exf5 {[%clk 0:00:49]}  Ne5 {[%clk 0:00:22]} 21. Bxa7 {[%clk 0:00:35]}  Qc7 {[%clk 0:00:09]} 22. dxc6 {[%clk 0:00:29]}  bxc6 {[%clk 0:00:08]} 23. Bd4 {[%clk 0:00:29]}  c5 {[%clk 0:00:07]} 24. Bc3 {[%clk 0:00:28]}  Ned7 {[%clk 0:00:05]} 25. Kh2 {[%clk 0:00:28]}  d5 {[%clk 0:00:06]} 26. Rcd1 {[%clk 0:00:23]}  d4 {[%clk 0:00:06]} 27. Bd2 {[%clk 0:00:24]}  Ne5 {[%clk 0:00:05]} 28. Bf4 {[%clk 0:00:24]}  Nfd7 {[%clk 0:00:04]} 29. b4 {[%clk 0:00:22]}  f6 {[%clk 0:00:03]} 30. bxc5 {[%clk 0:00:22]}  Qxc5 {[%clk 0:00:03]} 31. Qxc5 {[%clk 0:00:22]}  Rxc5 {[%clk 0:00:03]} 32. Rxd4 {[%clk 0:00:23]}  Rc2 {[%clk 0:00:03]} 33. Rd2 {[%clk 0:00:20]}  Rxd2 {[%clk 0:00:02]} 34. Bxd2 {[%clk 0:00:21]}  Ra8 {[%clk 0:00:02]} 35. f4 {[%clk 0:00:20]}  Rxa2 {[%clk 0:00:01]} 36. fxe5 {[%clk 0:00:20]}  Rxd2 {[%clk 0:00:02]} 37. e6 {[%clk 0:00:20]}  Ne5 {[%clk 0:00:02]} 38. e7 {[%clk 0:00:21]}  Kf7 {[%clk 0:00:02]} 39. Kg1 {[%clk 0:00:19]}  Kxe7 {[%clk 0:00:02]} 40. Ra1 {[%clk 0:00:19]}  Rb2 {[%clk 0:00:02]} 41. Ra7+ {[%clk 0:00:19]}  Kf8 {[%clk 0:00:03]} 42. Ra8+ {[%clk 0:00:19]}  Kf7 {[%clk 0:00:03]} 43. Ra7+ {[%clk 0:00:20]}  Kf8 {[%clk 0:00:03]} 44. Bd5 {[%clk 0:00:20]}  Rb1+ {[%clk 0:00:02]} 45. Kf2 {[%clk 0:00:20]}  Rb2+ {[%clk 0:00:03]} 46. Ke3 {[%clk 0:00:20]}  Rb5 {[%clk 0:00:04]} 47. Kd4 {[%clk 0:00:19]}  Rb8 {[%clk 0:00:04]} 48. g4 {[%clk 0:00:18]}  Rd8 {[%clk 0:00:04]} 49. Kc5 {[%clk 0:00:17]}  Rc8+ {[%clk 0:00:05]} 50. Kd4 {[%clk 0:00:16]}  Rd8 {[%clk 0:00:05]} 51. Ke4 {[%clk 0:00:17]}  Rc8 {[%clk 0:00:05]} 52. h4 {[%clk 0:00:17]}  Rc1 {[%clk 0:00:05]} 53. g5 {[%clk 0:00:17]}  Re1+ {[%clk 0:00:04]} 54. Kd4 {[%clk 0:00:17]}  hxg5 {[%clk 0:00:05]} 55. hxg5 {[%clk 0:00:17]}  Rd1+ {[%clk 0:00:06]} 56. Kc5 {[%clk 0:00:17]}  Rc1+ {[%clk 0:00:06]} 57. Kd6 {[%clk 0:00:18]}  Rc8 {[%clk 0:00:04]} 58. gxf6 {[%clk 0:00:16]}  gxf6 {[%clk 0:00:05]} 59. Ke6 {[%clk 0:00:16]}  Ng4 {[%clk 0:00:06]} 60. Rf7+ {[%clk 0:00:15]}  Kg8 {[%clk 0:00:05]} 61. Ra7 {[%clk 0:00:15]}  Re8+ {[%clk 0:00:05]} 62. Kd7+ {[%clk 0:00:15]}  Kf8 {[%clk 0:00:05]} 63. Ra4 {[%clk 0:00:12]}  Re7+ {[%clk 0:00:05]} 64. Kd6 {[%clk 0:00:12]}  Ne5 {[%clk 0:00:05]} 65. Ra8+ {[%clk 0:00:12]}  Re8 {[%clk 0:00:05]} 66. Ra7 {[%clk 0:00:12]}  Rd8+ {[%clk 0:00:04]} 67. Ke6 {[%clk 0:00:11]}  Ng4 {[%clk 0:00:05]} 68. Rh7 {[%clk 0:00:11]}  Re8+ {[%clk 0:00:04]} 69. Kd6 {[%clk 0:00:11]}  Rd8+ {[%clk 0:00:04]} 70. Kc6 {[%clk 0:00:09]}  Rc8+ {[%clk 0:00:04]} 71. Kd7 {[%clk 0:00:09]}  Rb8 {[%clk 0:00:02]} 72. Rh8+ {[%clk 0:00:09]}  Kg7 {[%clk 0:00:02]} 73. Rxb8 {[%clk 0:00:10]}  Ne5+ {[%clk 0:00:03]} 74. Ke6 {[%clk 0:00:10]} 1-0


[Site "https://www.chess.com"]

[Event "Titled Tuesday Blitz May 4 2021"]
[White "Chandratreya, Prachiti"]
[Black "Najdin, Danil"]
[WhiteFideId "46611215"]
[BlackFideId "4172426"]
[WhiteElo "1737"]
[BlackElo "2193"]
[Result "0-1"]
[Round "08"]
[TimeControl "180+1"]
[Date "2021.05.04"]
[WhiteClock "0:00:41"]
[BlackClock "0:00:16"]

1. Nf3 {[%clk 0:03:00]}  Nf6 {[%clk 0:02:59]} 2. g3 {[%clk 0:03:00]}  g6 {[%clk 0:02:59]} 3. Bg2 {[%clk 0:03:01]}  Bg7 {[%clk 0:03:00]} 4. O-O {[%clk 0:03:02]}  O-O {[%clk 0:03:01]} 5. d3 {[%clk 0:03:03]}  c5 {[%clk 0:02:58]} 6. c4 {[%clk 0:03:03]}  Nc6 {[%clk 0:02:56]} 7. Nc3 {[%clk 0:03:03]}  b6 {[%clk 0:02:56]} 8. Bd2 {[%clk 0:03:03]}  Bb7 {[%clk 0:02:56]} 9. a3 {[%clk 0:03:03]}  d5 {[%clk 0:02:52]} 10. Rb1 {[%clk 0:03:00]}  d4 {[%clk 0:02:36]} 11. Na4 {[%clk 0:02:59]}  Qc7 {[%clk 0:02:34]} 12. b4 {[%clk 0:02:58]}  Nd7 {[%clk 0:02:33]} 13. bxc5 {[%clk 0:02:58]}  bxc5 {[%clk 0:02:33]} 14. e3 {[%clk 0:02:57]}  Rab8 {[%clk 0:02:12]} 15. exd4 {[%clk 0:02:56]}  Nxd4 {[%clk 0:02:12]} 16. Nxd4 {[%clk 0:02:51]}  Bxg2 {[%clk 0:02:07]} 17. Kxg2 {[%clk 0:02:44]}  cxd4 {[%clk 0:02:03]} 18. Rxb8 {[%clk 0:02:35]}  Rxb8 {[%clk 0:02:03]} 19. Kg1 {[%clk 0:02:27]}  Qc6 {[%clk 0:01:59]} 20. Bf4 {[%clk 0:02:14]}  Be5 {[%clk 0:01:48]} 21. Bxe5 {[%clk 0:02:04]}  Nxe5 {[%clk 0:01:48]} 22. f4 {[%clk 0:02:04]}  Nd7 {[%clk 0:01:38]} 23. Re1 {[%clk 0:02:04]}  e6 {[%clk 0:01:34]} 24. Re4 {[%clk 0:02:01]}  Nc5 {[%clk 0:01:08]} 25. Nxc5 {[%clk 0:01:59]}  Qxc5 {[%clk 0:01:09]} 26. Kg2 {[%clk 0:01:33]}  Rb2+ {[%clk 0:01:08]} 27. Kg1 {[%clk 0:01:24]}  Qxa3 {[%clk 0:01:06]} 28. Re2 {[%clk 0:01:23]}  Rb3 {[%clk 0:00:54]} 29. Rd2 {[%clk 0:01:23]}  a5 {[%clk 0:00:43]} 30. Qe2 {[%clk 0:01:19]}  Qc5 {[%clk 0:00:39]} 31. Kg2 {[%clk 0:01:15]}  a4 {[%clk 0:00:37]} 32. Ra2 {[%clk 0:01:12]}  a3 {[%clk 0:00:36]} 33. h4 {[%clk 0:01:08]}  Qc6+ {[%clk 0:00:35]} 34. Kh2 {[%clk 0:01:06]}  Qb7 {[%clk 0:00:33]} 35. Qe5 {[%clk 0:00:55]}  Rb2+ {[%clk 0:00:28]} 36. Kh3 {[%clk 0:00:54]}  Rxa2 {[%clk 0:00:24]} 37. Kg4 {[%clk 0:00:54]}  Qd7 {[%clk 0:00:14]} 38. Kg5 {[%clk 0:00:50]}  Qd8+ {[%clk 0:00:12]} 39. Kh6 {[%clk 0:00:49]}  Qf8+ {[%clk 0:00:13]} 40. Kg5 {[%clk 0:00:48]}  h6+ {[%clk 0:00:13]} 41. Kf6 {[%clk 0:00:48]}  Qg7+ {[%clk 0:00:13]} 42. Ke7 {[%clk 0:00:48]}  f6+ {[%clk 0:00:13]} 43. Kxe6 {[%clk 0:00:46]}  fxe5 {[%clk 0:00:13]} 44. fxe5 {[%clk 0:00:46]}  Re2 {[%clk 0:00:13]} 45. c5 {[%clk 0:00:46]}  Rxe5+ {[%clk 0:00:13]} 46. Kd6 {[%clk 0:00:43]}  Qe7+ {[%clk 0:00:14]} 47. Kc6 {[%clk 0:00:42]}  Rxc5+ {[%clk 0:00:15]} 48. Kb6 {[%clk 0:00:42]}  Qc7+ {[%clk 0:00:16]} 49. Ka6 {[%clk 0:00:41]}  Ra5# {[%clk 0:00:16]} 0-1


[Site "https://www.chess.com"]

[Event "Titled Tuesday Blitz May 4 2021"]
[White "Costachi, Mihnea"]
[Black "Prithu Gupta"]
[WhiteFideId "1217518"]
[BlackFideId "46618546"]
[WhiteElo "2479"]
[BlackElo "1775"]
[Result "0-1"]
[Round "08"]
[TimeControl "180+1"]
[Date "2021.05.04"]
[WhiteClock "0:02:38"]
[BlackClock "0:02:52"]

1. d4 {[%clk 0:03:00]}  Nf6 {[%clk 0:02:54]} 2. c4 {[%clk 0:02:59]}  e6 {[%clk 0:02:54]} 3. Nf3 {[%clk 0:03:00]}  Bb4+ {[%clk 0:02:54]} 4. Qd2 {[%clk 0:03:00]}  Bxd2+ {[%clk 0:02:53]} 5. Bxd2 {[%clk 0:02:53]}  O-O {[%clk 0:02:53]} 6. Nc3 {[%clk 0:02:53]}  d5 {[%clk 0:02:54]} 7. e3 {[%clk 0:02:53]}  dxc4 {[%clk 0:02:53]} 8. Bxc4 {[%clk 0:02:53]}  a6 {[%clk 0:02:54]} 9. O-O {[%clk 0:02:53]}  b5 {[%clk 0:02:55]} 10. Be2 {[%clk 0:02:54]}  Bb7 {[%clk 0:02:55]} 11. Rac1 {[%clk 0:02:54]}  Nbd7 {[%clk 0:02:56]} 12. Rc2 {[%clk 0:02:51]}  c5 {[%clk 0:02:56]} 13. Rfc1 {[%clk 0:02:51]}  Rc8 {[%clk 0:02:56]} 14. h3 {[%clk 0:02:48]}  Bxf3 {[%clk 0:02:55]} 15. Bxf3 {[%clk 0:02:48]}  cxd4 {[%clk 0:02:56]} 16. exd4 {[%clk 0:02:49]}  Nb6 {[%clk 0:02:56]} 17. Bg5 {[%clk 0:02:44]}  Qxd4 {[%clk 0:02:54]} 18. Rd2 {[%clk 0:02:44]}  Qe5 {[%clk 0:02:53]} 19. Bh4 {[%clk 0:02:41]}  Nc4 {[%clk 0:02:53]} 20. Re2 {[%clk 0:02:41]}  Qf4 {[%clk 0:02:52]} 21. Bg5 {[%clk 0:02:38]}  Qxg5 {[%clk 0:02:52]} 0-1


[Site "https://www.chess.com"]

[Event "Titled Tuesday Blitz May 4 2021"]
[White "Cuevas, Alex"]
[Black "Mohandesi, Shahin"]
[WhiteFideId "114260"]
[BlackFideId "12501247"]
[WhiteElo "2289"]
[BlackElo "1993"]
[Result "0-1"]
[Round "08"]
[TimeControl "180+1"]
[Date "2021.05.04"]
[WhiteClock "0:01:06"]
[BlackClock "0:00:32"]

1. c4 {[%clk 0:03:00]}  Nf6 {[%clk 0:02:43]} 2. Nc3 {[%clk 0:03:00]}  e6 {[%clk 0:02:42]} 3. e4 {[%clk 0:03:00]}  d5 {[%clk 0:02:42]} 4. cxd5 {[%clk 0:03:00]}  exd5 {[%clk 0:02:42]} 5. e5 {[%clk 0:03:00]}  Ne4 {[%clk 0:02:43]} 6. d4 {[%clk 0:02:57]}  Bb4 {[%clk 0:02:42]} 7. Qb3 {[%clk 0:02:55]}  c5 {[%clk 0:02:39]} 8. a3 {[%clk 0:02:45]}  Bxc3+ {[%clk 0:02:33]} 9. bxc3 {[%clk 0:02:44]}  O-O {[%clk 0:02:33]} 10. Nf3 {[%clk 0:02:44]}  Nc6 {[%clk 0:02:26]} 11. Be3 {[%clk 0:02:42]}  Qa5 {[%clk 0:02:24]} 12. dxc5 {[%clk 0:02:34]}  Nxc5 {[%clk 0:02:14]} 13. Bxc5 {[%clk 0:02:23]}  Qxc5 {[%clk 0:02:15]} 14. Bd3 {[%clk 0:02:23]}  Bg4 {[%clk 0:02:13]} 15. Ng5 {[%clk 0:01:56]}  h6 {[%clk 0:01:56]} 16. h3 {[%clk 0:01:54]}  Be6 {[%clk 0:01:25]} 17. Nf3 {[%clk 0:01:52]}  d4 {[%clk 0:01:20]} 18. c4 {[%clk 0:01:51]}  Nxe5 {[%clk 0:01:13]} 19. Nxe5 {[%clk 0:01:48]}  Qxe5+ {[%clk 0:01:13]} 20. Kf1 {[%clk 0:01:49]}  a6 {[%clk 0:01:07]} 21. Re1 {[%clk 0:01:48]}  Qc5 {[%clk 0:01:02]} 22. a4 {[%clk 0:01:43]}  Rac8 {[%clk 0:00:56]} 23. Rxe6 {[%clk 0:01:27]}  fxe6 {[%clk 0:00:56]} 24. Kg1 {[%clk 0:01:25]}  Qg5 {[%clk 0:00:37]} 25. Qd1 {[%clk 0:01:19]}  b5 {[%clk 0:00:35]} 26. h4 {[%clk 0:01:10]}  Qf4 {[%clk 0:00:34]} 27. Qe2 {[%clk 0:01:07]}  bxc4 {[%clk 0:00:33]} 28. Be4 {[%clk 0:01:06]}  d3 {[%clk 0:00:32]} 0-1


[Site "https://www.chess.com"]

[Event "Titled Tuesday Blitz May 4 2021"]
[White "Darini, Pouria"]
[Black "Chitlange Sakshi"]
[WhiteFideId "12502200"]
[BlackFideId "35002899"]
[WhiteElo "2489"]
[BlackElo "1787"]
[Result "1-0"]
[Round "08"]
[TimeControl "180+1"]
[Date "2021.05.04"]
[WhiteClock "0:00:17"]
[BlackClock "0:00:02"]

1. e4 {[%clk 0:03:00]}  c5 {[%clk 0:02:59]} 2. Nf3 {[%clk 0:03:00]}  d6 {[%clk 0:02:59]} 3. d4 {[%clk 0:03:00]}  cxd4 {[%clk 0:03:00]} 4. Nxd4 {[%clk 0:03:01]}  Nf6 {[%clk 0:03:01]} 5. Nc3 {[%clk 0:03:02]}  a6 {[%clk 0:03:01]} 6. h3 {[%clk 0:03:01]}  e5 {[%clk 0:03:00]} 7. Nde2 {[%clk 0:03:01]}  h5 {[%clk 0:03:00]} 8. g3 {[%clk 0:03:01]}  Be6 {[%clk 0:02:59]} 9. Bg2 {[%clk 0:03:01]}  Be7 {[%clk 0:02:59]} 10. a4 {[%clk 0:03:01]}  Nbd7 {[%clk 0:02:59]} 11. b3 {[%clk 0:02:59]}  Rc8 {[%clk 0:02:53]} 12. f4 {[%clk 0:02:59]}  exf4 {[%clk 0:02:38]} 13. gxf4 {[%clk 0:03:00]}  Nb8 {[%clk 0:02:10]} 14. Ba3 {[%clk 0:02:48]}  Qa5 {[%clk 0:02:01]} 15. Qd2 {[%clk 0:02:44]}  O-O {[%clk 0:01:45]} 16. O-O {[%clk 0:02:35]}  Rfd8 {[%clk 0:01:35]} 17. Rad1 {[%clk 0:02:19]}  Nc6 {[%clk 0:01:18]} 18. Nd5 {[%clk 0:02:07]}  Bxd5 {[%clk 0:01:13]} 19. exd5 {[%clk 0:02:03]}  Qxd2 {[%clk 0:01:01]} 20. Rxd2 {[%clk 0:02:04]}  Nb8 {[%clk 0:01:01]} 21. Nd4 {[%clk 0:01:53]}  Ne8 {[%clk 0:00:44]} 22. c4 {[%clk 0:01:42]}  Bf6 {[%clk 0:00:44]} 23. a5 {[%clk 0:01:41]}  Nd7 {[%clk 0:00:41]} 24. Bf3 {[%clk 0:01:39]}  g6 {[%clk 0:00:35]} 25. Re1 {[%clk 0:01:38]}  Nc5 {[%clk 0:00:32]} 26. Bd1 {[%clk 0:01:39]}  Bh4 {[%clk 0:00:27]} 27. Re3 {[%clk 0:01:36]}  Ng7 {[%clk 0:00:27]} 28. Bc2 {[%clk 0:01:30]}  Bf6 {[%clk 0:00:26]} 29. Kg2 {[%clk 0:01:27]}  Re8 {[%clk 0:00:25]} 30. Rxe8+ {[%clk 0:01:15]}  Rxe8 {[%clk 0:00:23]} 31. Kf3 {[%clk 0:01:16]}  Rc8 {[%clk 0:00:20]} 32. b4 {[%clk 0:01:16]}  Nd7 {[%clk 0:00:20]} 33. Bb3 {[%clk 0:01:14]}  Bxd4 {[%clk 0:00:18]} 34. Rxd4 {[%clk 0:01:14]}  Nf5 {[%clk 0:00:19]} 35. Re4 {[%clk 0:01:15]}  Nf6 {[%clk 0:00:19]} 36. Bb2 {[%clk 0:01:01]}  Nxe4 {[%clk 0:00:19]} 37. Kxe4 {[%clk 0:01:02]}  h4 {[%clk 0:00:17]} 38. Kd3 {[%clk 0:01:03]}  Ng3 {[%clk 0:00:17]} 39. Bf6 {[%clk 0:01:01]}  Nf5 {[%clk 0:00:16]} 40. Ba4 {[%clk 0:01:01]}  Rc7 {[%clk 0:00:15]} 41. Bd8 {[%clk 0:01:00]}  Rc8 {[%clk 0:00:15]} 42. Bf6 {[%clk 0:01:01]}  Rc7 {[%clk 0:00:15]} 43. Bd8 {[%clk 0:00:50]}  Rc8 {[%clk 0:00:15]} 44. Bb6 {[%clk 0:00:51]}  Kf8 {[%clk 0:00:13]} 45. c5 {[%clk 0:00:52]}  Ke7 {[%clk 0:00:12]} 46. c6 {[%clk 0:00:52]}  bxc6 {[%clk 0:00:11]} 47. Bxc6 {[%clk 0:00:53]}  Rb8 {[%clk 0:00:11]} 48. Kc3 {[%clk 0:00:46]}  Ng7 {[%clk 0:00:11]} 49. Ba7 {[%clk 0:00:38]}  Rc8 {[%clk 0:00:10]} 50. Bf2 {[%clk 0:00:38]}  Nf5 {[%clk 0:00:10]} 51. b5 {[%clk 0:00:39]}  axb5 {[%clk 0:00:09]} 52. a6 {[%clk 0:00:39]}  b4+ {[%clk 0:00:07]} 53. Kxb4 {[%clk 0:00:39]}  Rc7 {[%clk 0:00:06]} 54. Bb6 {[%clk 0:00:36]}  Rc8 {[%clk 0:00:04]} 55. a7 {[%clk 0:00:36]}  Kf6 {[%clk 0:00:04]} 56. Bf2 {[%clk 0:00:34]}  g5 {[%clk 0:00:03]} 57. fxg5+ {[%clk 0:00:33]}  Kxg5 {[%clk 0:00:04]} 58. Bb6 {[%clk 0:00:18]}  Kf4 {[%clk 0:00:03]} 59. Bb7 {[%clk 0:00:19]}  Re8 {[%clk 0:00:03]} 60. Bc7 {[%clk 0:00:19]}  Re4+ {[%clk 0:00:02]} 61. Ka5 {[%clk 0:00:16]}  Re1 {[%clk 0:00:01]} 62. Ka6 {[%clk 0:00:17]}  Ra1+ {[%clk 0:00:02]} 63. Ba5 {[%clk 0:00:17]}  Rb1 {[%clk 0:00:02]} 64. a8=Q {[%clk 0:00:17]} 1-0


[Site "https://www.chess.com"]

[Event "Titled Tuesday Blitz May 4 2021"]
[White "Demchenko, Anton"]
[Black "Sanchez Alvares, Kelvin Antonio"]
[WhiteFideId "4160258"]
[BlackFideId "3906680"]
[WhiteElo "2593"]
[BlackElo "2247"]
[Result "1-0"]
[Round "08"]
[TimeControl "180+1"]
[Date "2021.05.04"]
[WhiteClock "0:02:21"]
[BlackClock "0:02:10"]

1. e4 {[%clk 0:03:00]}  c5 {[%clk 0:02:58]} 2. Nf3 {[%clk 0:03:00]}  d6 {[%clk 0:02:58]} 3. d4 {[%clk 0:03:00]}  cxd4 {[%clk 0:02:59]} 4. Nxd4 {[%clk 0:03:01]}  Nf6 {[%clk 0:02:59]} 5. Nc3 {[%clk 0:03:02]}  g6 {[%clk 0:03:00]} 6. Be3 {[%clk 0:03:00]}  Bg7 {[%clk 0:03:00]} 7. Be2 {[%clk 0:03:01]}  O-O {[%clk 0:03:01]} 8. Qd2 {[%clk 0:03:01]}  Nc6 {[%clk 0:03:01]} 9. O-O-O {[%clk 0:03:02]}  Nxd4 {[%clk 0:02:59]} 10. Bxd4 {[%clk 0:03:01]}  Qa5 {[%clk 0:02:58]} 11. Kb1 {[%clk 0:03:01]}  Be6 {[%clk 0:02:53]} 12. Bxf6 {[%clk 0:02:28]}  Bxf6 {[%clk 0:02:25]} 13. Nd5 {[%clk 0:02:28]}  Qxd2 {[%clk 0:02:23]} 14. Nxf6+ {[%clk 0:02:28]}  exf6 {[%clk 0:02:16]} 15. Rxd2 {[%clk 0:02:28]}  Rfd8 {[%clk 0:02:17]} 16. Rhd1 {[%clk 0:02:27]}  Kf8 {[%clk 0:02:14]} 17. Rxd6 {[%clk 0:02:24]}  Rxd6 {[%clk 0:02:14]} 18. Rxd6 {[%clk 0:02:25]}  Ke7 {[%clk 0:02:15]} 19. Rd1 {[%clk 0:02:23]}  Rc8 {[%clk 0:02:10]} 20. b3 {[%clk 0:02:21]} 1-0


[Site "https://www.chess.com"]